Workbook

Sheet Introduction
A3: . . . . . . . . . . . . . . . . . . . . . . . . . . . . . . . . . . . . . . . . . . . . . . . . .
A5: Guidelines For Estimating
A6: Bison Cow-Calf Production Costs
A7: ="Based on a "&Input!E13&" Head Cow Herd" -> Based on a 100 Head Cow Herd
G10: Date: | I10: October, 2022
B16: This guide is designed to provide you with planning information and a format for calculating costs of production of a bison cow calf enterprise in Manitoba. General Manitoba Agriculture recommendations are assumed in using feed and veterinary inputs. These figures provide an economic evaluation of the livestock and estimated prices required to cover all costs. Costs include labour, investment and depreciation, but do not include management costs, nor do they necessarily represent the average cost of production in Manitoba.
B26: These budgets may be adjusted by putting in your own figures. As a producer you are encouraged to calculate your own costs of production. Good management is assumed in that a balanced ration is being fed, livestock are on a herd health program and handling facilities are included.
B32: This tool is available as an Excel worksheet at:
H39: is also available to
B40: help determine machinery costs.
B42: Note: This budget is only a guide and is not intended as an in-depth study of the cost of production of this industry. Interpretation and use of this information is the responsibility of the user. If you need help with a budget, contact a Farm Management Specialist.

Sheet Summary
B1: Bison Cow-Calf Production Costs - Summary
B3: A. Operating Costs | F3: $/Cow | H3: Total | J3: Your Costs
B4: 1. Feed Costs
B5: 1.01 Grain | F5: =Details!D33 -> 50.88 | H5: =ROUND(F5*Input!$E$13,0) -> 5088
B6: 1.02 Hay | F6: =Details!D46 -> 383.4 | H6: =ROUND(F6*Input!$E$13,0) -> 38340
B7: 1.03 Salt & Minerals | F7: =Details!D69 -> 42.88 | H7: =ROUND(F7*Input!$E$13,0) -> 4288
B8: 1.04 Creep Feed | F8: =Details!D76 -> 0 | H8: =ROUND(F8*Input!$E$13,0) -> 0
B9: 1.05 Extended Grazing Forages | F9: =Details!D87 -> 29.625 | H9: =ROUND(F9*Input!$E$13,0) -> 2963
B10: Total Feed Cost | F10: =SUM(F5:F9) -> 506.785 | H10: =SUM(H5:H9) -> 50679
B12: 2. Other Operating Costs
B13: 2.01 Veterinary Medicine & Supplies | F13: =Details!D128 -> 18.87 | H13: =ROUND(F13*Input!$E$13,0) -> 1887
B14: 2.02 Fuel, Maintenance & Repairs | F14: =Details!D154 -> 59.3997 | H14: =ROUND(F14*Input!$E$13,0) -> 5940
B15: 2.03 Utilities | F15: =Details!D159 -> 11.6 | H15: =ROUND(F15*Input!$E$13,0) -> 1160
B16: 2.04 Marketing & Transportation | F16: =Details!D196 -> 37.06 | H16: =ROUND(F16*Input!$E$13,0) -> 3706
B17: 2.05 Death Loss | F17: =Details!D209 -> 71.16 | H17: =ROUND(F17*Input!$E$13,0) -> 7116
B18: 2.06 Insurance | F18: =Details!D228 -> 17.68 | H18: =ROUND(F18*Input!$E$13,0) -> 1768
B19: 2.07 Herd Replacement | F19: =Details!D243 -> 65.8 | H19: =ROUND(F19*Input!$E$13,0) -> 6580
B20: 2.08 Miscellaneous | F20: =Details!D248 -> 10 | H20: =ROUND(F20*Input!$E$13,0) -> 1000
B21: 2.09 Land Taxes | F21: =Details!D253 -> 20 | H21: =ROUND(F21*Input!$E$13,0) -> 2000
B22: Subtotal Operating Costs | F22: =SUM(F10:F21) -> 818.3547 | H22: =SUM(H13:H21)+H10 -> 81836
B23: 2.10 Operating Interest | F23: =Details!D260 -> 31.71 | H23: =ROUND(F23*Input!$E$13,0) -> 3171
B24: Total Operating Costs | F24: =F22+F23 -> 850.0647 | H24: =SUM(H22:H23) -> 85007
B26: B. Fixed Costs
B27: 3. Depreciation
B28: 3.01 Facilities | F28: =Details!D311 -> 31.63 | H28: =ROUND(F28*Input!$E$13,0) -> 3163
B29: 3.02 Machinery & Equipment | F29: =Details!D318 -> 98.4 | H29: =ROUND(F29*Input!$E$13,0) -> 9840
B30: 3.03 Fencing | F30: =Details!D327 -> 31.71
B31: 4. Investment
B32: 4.01 Facilities | F32: =Details!D339 -> 9.49 | H32: =ROUND(F32*Input!$E$13,0) -> 949
B33: 4.02 Machinery & Equipment | F33: =Details!D347 -> 22.14 | H33: =ROUND(F33*Input!$E$13,0) -> 2214
B34: 4.03 Livestock | F34: =Details!D360 -> 97.74 | H34: =ROUND(F34*Input!$E$13,0) -> 9774
B35: 4.03 Pasture Land & Fencing | F35: =Details!D379 -> 137.01 | H35: =ROUND(F35*Input!$E$13,0) -> 13701
B36: Total Fixed Costs | F36: =SUM(F28:F35) -> 428.12 | H36: =SUM(H32:H35)+H28+H29 -> 39641
B38: Total Operating and Fixed Costs | F38: =F24+F36 -> 1278.1847 | H38: =H24+H36 -> 124648
B40: C. Labour | F40: =Details!D384 -> 104 | H40: =ROUND(F40*Input!$E$13,0) -> 10400
B42: Total Cost of Production | F42: =F38+F40 -> 1382.1847 | H42: =H38+H40 -> 135048
D44: Profitability and Breakeven Analysis
A45: Estimated Farmgate | F45: Per Cow | H45: Total
B46: Price ($ per cwt) | F46: =Input!E21 -> 176.27
B47: Calf weight (lbs) | F47: =Input!E20 -> 463
B48: Gross Revenue / cow | F48: =SUM((Input!E21/100)*Input!E20)*(Input!E15/100) -> 718.194488 | H48: =ROUND(F48*Input!$E$13,0) -> 71819 | J48: =IF(OR(J46="",J47=""),"",ROUND(J46*J47/100,2)) -> 
A50: Marginal Returns
B51: Over Operating Costs | F51: =SUM(F48-F24) -> -131.870212 | H51: =ROUND(F51*Input!$E$13,0) -> -13187 | J51: =IF(OR(J24="",J48=""),"",J48-J24) -> 
B52: Over Operating & Labour Costs | F52: =SUM(F48-F24-F40) -> -235.870212 | H52: =ROUND(F52*Input!$E$13,0) -> -23587 | J52: =IF(OR(J24="",J40="",J48=""),"",J48-J24-J40) -> 
B53: Over Operating & Fixed Costs | F53: =SUM(F48-F38) -> -559.990212 | H53: =ROUND(F53*Input!$E$13,0) -> -55999 | J53: =IF(OR(J38="",J48=""),"",J48-J38) -> 
B54: Over Total Costs (Net Profit) | F54: =SUM(F48-F42) -> -663.990212 | H54: =ROUND(F54*Input!$E$13,0) -> -66399 | J54: =IF(OR(J41="",J48=""),"",J48-J41) -> 
B55: Operating Expense Ratio | F55: =SUM(F24/F48) -> 1.183613512 | J55: =IF(OR(J24="",J48=""),"",J24/J48) -> 
B57: Breakeven selling price/head | F57: $/head | H57: $/cwt
B58: Operating Costs | F58: =(F24/(Input!E15/100)) -> 965.9826136 | H58: =(F58/(Input!E20))*100 -> 208.6355537
B59: Operating & Labour Costs | F59: =(F24+F40/(Input!E15/100)) -> 968.2465182 | H59: =(F59/(Input!E20))*100 -> 209.124518
B60: Operating & Fixed Costs | F60: =((F38)/(Input!E15/100)) -> 1452.482614 | H60: =((F60)/Input!E20)*100 -> 313.7111477
B61: Operating, Labour & Fixed Cost | F61: =((F42)/(Input!E15/100)) -> 1570.664432 | H61: =((F61/Input!E20))*100 -> 339.2363784
B62: Breakeven Price/head = Cost ÷ % calf crop
A64: Cost Summary Per Cow Per Day
B66: ="Summer grazing (based on "&Input!G41&" days)" -> Summer grazing (based on 170 days) | F66: =SUM((F35+F21+F30+F8)/Input!G41) -> 1.110117647
B67: ="Extended grazing (based on "&Input!G42&" days)" -> Extended grazing (based on 30 days) | F67: =IF('Extended Grazing'!G58="",0,'Extended Grazing'!G58) -> 0.9875
B68: ="Winter feed (based on "&Input!G43&" days)" -> Winter feed (based on 165 days) | F68: =SUM((F5+F6+F7)/Input!G43) -> 2.891878788
B69: ="Yardage (based on "&Input!G43+Input!G42&" days)" -> Yardage (based on 195 days) | F69: =(Summary!F14+Details!D216+Details!D159+Details!D311+Details!D318+Details!D339+Details!D347+(Summary!F20*((Input!G42+Input!G43)/365))+Details!D384*0.625)/(Input!G43+Input!G42) -> 1.566831619
B70: ="Total Overwinter Costs (based on "&Input!G43+Input!G42&" days)" -> Total Overwinter Costs (based on 195 days) | F70: =SUM(((F68*Input!G43)+(F69*(Input!G42+Input!G43))+(F67*Input!G42))/(Input!G42+Input!G43)) -> 4.165729055
B72: Note: This budget is only a guide and is not intended to be an in-depth study of the cost of production of this industry. Interpretation and utilization of this information is the responsibility of the user. No liability for decisions based on this publication is assumed.

Sheet Risk Analysis
B1: Risk & Sensitivity Analysis
C3: Per Cow
A4: A. Operating Costs | C4: =Summary!F24 -> 850.0647
A5: B. Fixed Costs | C5: =Summary!F36 -> 428.12
A6: C. Labour | C6: =Summary!F40 -> 104
A7: Total Costs | C7: =Summary!F42 -> 1382.1847
A9: Estimated Farmgate
B10: Price ($ per cwt) | C10: =Summary!F46 -> 176.27
B11: Calf Crop % | C11: =Input!E15 -> 88
B12: Calf weight (lbs) | C12: =Input!E20 -> 463
C15: Up | D15: Down
B16: Percent Price Variation | C16: 0.05 | D16: 0.1
B17: Percent Calf Crop Variation | C17: 0.01 | D17: 0.05
B18: Percent Calf Weight Variation | C18: 0.05 | D18: 0.05
B21: Higher Price ($ per cwt) | C21: =SUM(C10*(1+C16)) -> 185.0835
B22: Lower Price ($ per cwt) | C22: =SUM(C10*(1-D16)) -> 158.643
B23: Higher Calf Crop % | C23: =SUM(C11+(C17*100)) -> 89
B24: Lower Calf crop % | C24: =SUM(C11-(D17*100)) -> 83
B25: Higher Calf Weight | C25: =SUM(C12*(1+C18)) -> 486.15
B26: Lower Calf Weight | C26: =SUM(C12*(1-D18)) -> 439.85
A28: ="Higher Margin Scenario - Price Up "&C16*100&"%, Calf Crop Up "&C17*100&"% and Calf Weight Up "&C18*100&"%" -> Higher Margin Scenario - Price Up 5%, Calf Crop Up 1% and Calf Weight Up 5%
B29: Gross Revenue per Cow | C29: =SUM((C25/100)*C21*(C23/100)) -> 800.8072574
B30: Marginal Returns
B31: Over Operating Costs | C31: =SUM(C29-C4) -> -49.25744263
B32: Over Operating & Labour Costs | C32: =SUM(C29-C4-C6) -> -153.2574426
B33: Over Operating & Fixed Costs | C33: =SUM(C29-C4-C5) -> -477.3774426
B34: Over Total Costs (Net Profit) | C34: =SUM(C29-C7) -> -581.3774426
B35: Operating Expense Ratio | C35: =SUM(C4/C29) -> 1.061509736
A37: ="Lower Margin Scenario - Price Down "&D16*100&"%, Calf Crop Down "&D17*100&"% and Calf Weight Down "&D18*100&"%" -> Lower Margin Scenario - Price Down 10%, Calf Crop Down 5% and Calf Weight Down 5%
B38: Gross Revenue per Cow | C38: =SUM((C26/100)*C22*(C24/100)) -> 579.1667255
B39: Marginal Returns
B40: Over Operating Costs | C40: =SUM(C38-C4) -> -270.8979745
B41: Over Operating & Labour Costs | C41: =SUM(C38-C4-C6) -> -374.8979745
B42: Over Operating & Fixed Costs | C42: =SUM(C38-C4-C5) -> -699.0179745
B43: Over Total Costs (Net Profit) | C43: =SUM(C38-C7) -> -803.0179745
B44: Operating Expense Ratio | C44: =SUM(C4/C38) -> 1.467737463
B46: Estimated Breakeven Replacement Purchase Values1 - Number of Years Before Culling
C47: 1 Year | D47: 2 Years | E47: 3 Years | F47: 4 Years | G47: 5 Years | H47: 6 Years | I47: 7 Years | J47: 8 Years
A48: Operating Expense (per Cow)
B49: Feed Cost | C49: =Summary!F10 -> 506.785 | D49: =C49 -> 506.785 | E49: =C49 -> 506.785 | F49: =C49 -> 506.785 | G49: =C49 -> 506.785 | H49: =C49 -> 506.785 | I49: =C49 -> 506.785 | J49: =C49 -> 506.785
B50: Other Operating Cost2 | C50: =Summary!F22-Summary!F10 -> 311.5697 | D50: =SUM(C50*(1+(Input!$E$106/100/2))) -> 316.2432455 | E50: =SUM(D50*(1+(Input!$E$106/100/2))) -> 320.9868942 | F50: =SUM(E50*(1+(Input!$E$106/100/2))) -> 325.8016976 | G50: =SUM(F50*(1+(Input!$E$106/100/2))) -> 330.6887231 | H50: =SUM(G50*(1+(Input!$E$106/100/2))) -> 335.6490539 | I50: =SUM(H50*(1+(Input!$E$106/100/2))) -> 340.6837897 | J50: =SUM(I50*(1+(Input!$E$106/100/2))) -> 345.7940466
B51: Operating Interest | C51: =SUM((C49+C50)/2)*Input!$E$107/100 -> 31.71124462 | D51: =SUM((D49+D50)/2)*Input!$E$107/100 -> 31.89234451 | E51: =SUM((E49+E50)/2)*Input!$E$107/100 -> 32.0761609 | F51: =SUM((F49+F50)/2)*Input!$E$107/100 -> 32.26273453 | G51: =SUM((G49+G50)/2)*Input!$E$107/100 -> 32.45210677 | H51: =SUM((H49+H50)/2)*Input!$E$107/100 -> 32.64431959 | I51: =SUM((I49+I50)/2)*Input!$E$107/100 -> 32.8394156 | J51: =SUM((J49+J50)/2)*Input!$E$107/100 -> 33.03743805
A52: Total Operating Cost | C52: =SUM(C49:C51) -> 850.0659446 | D52: =SUM(D49:D51) -> 854.92059 | E52: 859.8480551 | F52: 864.8494321 | G52: 869.9258298 | H52: 875.0783735 | I52: 880.3082053 | J52: 885.6164846
A53: Total Fixed Cost2 | C53: =Summary!F36 -> 428.12 | D53: =SUM(C53*(1+(Input!$E$106/100/2))) -> 434.5418 | E53: =SUM(D53*(1+(Input!$E$106/100/2))) -> 441.059927 | F53: =SUM(E53*(1+(Input!$E$106/100/2))) -> 447.6758259 | G53: =SUM(F53*(1+(Input!$E$106/100/2))) -> 454.3909633 | H53: =SUM(G53*(1+(Input!$E$106/100/2))) -> 461.2068277 | I53: =SUM(H53*(1+(Input!$E$106/100/2))) -> 468.1249302 | J53: =SUM(I53*(1+(Input!$E$106/100/2))) -> 475.1468041
A54: Total Operating and Fixed Cost | C54: =SUM(C52:C53) -> 1278.185945 | D54: =SUM(D52:D53) -> 1289.46239 | E54: 1300.907982 | F54: 1312.525258 | G54: 1324.316793 | H54: 1336.285201 | I54: 1348.433135 | J54: 1360.763289
A55: Total Labour (Living) Cost2 | C55: =Summary!F40 -> 104 | D55: =SUM(C55*(1+(Input!$E$106/100/2))) -> 105.56 | E55: =SUM(D55*(1+(Input!$E$106/100/2))) -> 107.1434 | F55: =SUM(E55*(1+(Input!$E$106/100/2))) -> 108.750551 | G55: =SUM(F55*(1+(Input!$E$106/100/2))) -> 110.3818093 | H55: =SUM(G55*(1+(Input!$E$106/100/2))) -> 112.0375364 | I55: =SUM(H55*(1+(Input!$E$106/100/2))) -> 113.7180995 | J55: =SUM(I55*(1+(Input!$E$106/100/2))) -> 115.4238709
A56: Total Cost Per Cow | C56: =SUM(C55+C54) -> 1382.185945 | D56: =SUM(D55+D54) -> 1395.02239 | E56: 1408.051382 | F56: 1421.275809 | G56: 1434.698602 | H56: 1448.322738 | I56: 1462.151235 | J56: 1476.18716
A58: Income (per Cow)
B59: Calf Market Price ($/cwt) | C59: =Input!E21 -> 176.27 | D59: =$C$59 -> 176.27 | E59: =$C$59 -> 176.27 | F59: 176.27 | G59: 176.27 | H59: 176.27 | I59: 176.27 | J59: 176.27
B60: Calf Revenue | C60: =SUM((Input!E21/100)*Input!E20)*(Input!E15/100) -> 718.194488 | D60: =SUM((D59/100)*Input!$E$20)*(Input!$E$15/100) -> 718.194488 | E60: =SUM((E59/100)*Input!$E$20)*(Input!$E$15/100) -> 718.194488 | F60: =SUM((F59/100)*Input!$E$20)*(Input!$E$15/100) -> 718.194488 | G60: =SUM((G59/100)*Input!$E$20)*(Input!$E$15/100) -> 718.194488 | H60: =SUM((H59/100)*Input!$E$20)*(Input!$E$15/100) -> 718.194488 | I60: =SUM((I59/100)*Input!$E$20)*(Input!$E$15/100) -> 718.194488 | J60: =SUM((J59/100)*Input!$E$20)*(Input!$E$15/100) -> 718.194488
B61: Cull Cow Revenue | C61: =Input!E121 -> 2200 | D61: =$C$61 -> 2200 | E61: =$C$61 -> 2200 | F61: 2200 | G61: 2200 | H61: 2200 | I61: 2200 | J61: 2200
A63: ="Breakeven Replacement Purchase Value (@ "&Input!E106&"% annual investment cost)" -> Breakeven Replacement Purchase Value (@ 3% annual investment cost)
B64: Over Operating Costs | C64: =NPV(Input!$E$106/100,(C60-C52)+C61) -> 2007.89179 | D64: =NPV(Input!$E$106/100,C60-C52,D60-D52+$D$61) -> 1816.802995 | E64: =NPV(Input!$E$106/100,C60-C52,D60-D52,E60-E52+$E$61) -> 1626.770565 | F64: =NPV(Input!$E$106/100,C60-C52,D60-D52,E60-E52,F60-F52+$F$61) -> 1437.829402 | G64: =NPV(Input!$E$106/100,C60-C52,D60-D52,E60-E52,F60-F52,G60-G52+$G$61) -> 1250.012434 | H64: =NPV(Input!$E$106/100,C60-C52,D60-D52,E60-E52,F60-F52,G60-G52,H60-H52+$H$61) -> 1063.350689 | I64: =NPV(Input!$E$106/100,C60-C52,D60-D52,E60-E52,F60-F52,G60-G52,H60-H52,I60-I52+$I$61) -> 877.8733613 | J64: =NPV(Input!$E$106/100,C60-C52,D60-D52,E60-E52,F60-F52,G60-G52,H60-H52,I60-I52,J60-J52+$J$61) -> 693.6078817
B65: Over Operating & Labour Costs | C65: =NPV(Input!$E$106/100,(C60-C52-C55)+C61) -> 1906.920916 | D65: =NPV(Input!$E$106/100,C60-C52-C55,D60-D52-D55+$D$61) -> 1616.331697 | E65: =NPV(Input!$E$106/100,C60-C52-C55,D60-D52-D55,E60-E52-E55+$E$61) -> 1328.247878 | F65: =NPV(Input!$E$106/100,C60-C52-C55,D60-D52-D55,E60-E52-E55,F60-F52-F55+$F$61) -> 1042.683259 | G65: =NPV(Input!$E$106/100,C60-C52-C55,D60-D52-D55,E60-E52-E55,F60-F52-F55,G60-G52-G55+$G$61) -> 759.6499725 | H65: =NPV(Input!$E$106/100,C60-C52-C55,D60-D52-D55,E60-E52-E55,F60-F52-F55,G60-G52-G55,H60-H52-H55+$H$61) -> 479.1585545 | I65: =NPV(Input!$E$106/100,C60-C52-C55,D60-D52-D55,E60-E52-E55,F60-F52-F55,G60-G52-G55,H60-H52-H55,I60-I52-I55+$I$61) -> 201.2180059 | J65: =NPV(Input!$E$106/100,C60-C52-C55,D60-D52-D55,E60-E52-E55,F60-F52-F55,G60-G52-G55,H60-H52-H55,I60-I52-I55,J60-J52-J55+$J$61) -> -74.16414326
B66: Over Operating & Fixed Costs | C66: =NPV(Input!$E$106/100,C60-C52-C53+C61) -> 1592.241304 | D66: =NPV(Input!$E$106/100,C60-C52-C53,D60-D52-D53+$D$61) -> 991.5551868 | E66: =NPV(Input!$E$106/100,C60-C52-C53,D60-D52-D53,E60-E52-E53+$E$61) -> 397.8904434 | F66: =NPV(Input!$E$106/100,C60-C52-C53,D60-D52-D53,E60-E52-E53,F60-F52-F53+$F$61) -> -188.8048931 | G66: =NPV(Input!$E$106/100,C60-C52-C53,D60-D52-D53,E60-E52-E53,F60-F52-F53,G60-G52-G53+$G$61) -> -768.5834977 | H66: =NPV(Input!$E$106/100,C60-C52-C53,D60-D52-D53,E60-E52-E53,F60-F52-F53,G60-G52-G53,H60-H52-H53+$H$61) -> -1341.4987 | I66: =NPV(Input!$E$106/100,C60-C52-C53,D60-D52-D53,E60-E52-E53,F60-F52-F53,G60-G52-G53,H60-H52-H53,I60-I52-I53+$I$61) -> -1907.604434 | J66: =NPV(Input!$E$106/100,C60-C52-C53,D60-D52-D53,E60-E52-E53,F60-F52-F53,G60-G52-G53,H60-H52-H53,I60-I52-I53,J60-J52-J53+$J$61) -> -2466.955189
B67: Over Total Costs (Net Profit) | C67: =NPV(Input!$E$106/100,(C60-C56)+C61) -> 1491.27043 | D67: =NPV(Input!$E$106/100,C60-C56,D60-D56+$D$61) -> 791.0838888 | E67: =NPV(Input!$E$106/100,C60-C56,D60-D56,E60-E56+$E$61) -> 99.36775655 | F67: =NPV(Input!$E$106/100,C60-C56,D60-D56,E60-E56,F60-F56+$F$61) -> -583.951036 | G67: =NPV(Input!$E$106/100,C60-C56,D60-D56,E60-E56,F60-F56,G60-G56+$G$61) -> -1258.945959 | H67: =NPV(Input!$E$106/100,C60-C56,D60-D56,E60-E56,F60-F56,G60-G56,H60-H56+$H$61) -> -1925.690834 | I67: =NPV(Input!$E$106/100,C60-C56,D60-D56,E60-E56,F60-F56,G60-G56,H60-H56,I60-I56+$I$61) -> -2584.25979 | J67: =NPV(Input!$E$106/100,C60-C56,D60-D56,E60-E56,F60-F56,G60-G56,H60-H56,I60-I56,J60-J56+$J$61) -> -3234.727214
A69: 1 | B69: ="Yearly replacement value is calculated by adding the marginal returns from the current and each of the previous years and cull cow revenue in the current year at net present value (based on "&Input!E106&"% annual investment cost)" -> Yearly replacement value is calculated by adding the marginal returns from the current and each of the previous years and cull cow revenue in the current year at net present value (based on 3% annual investment cost)
A71: 2 | B71: ="Costs estimates are increased annually by "&Input!E106/2&"% inflation rate" -> Costs estimates are increased annually by 1.5% inflation rate
B73: Note: This budget is only a guide and is not intended as an in-depth study of the cost of production of this industry. Interpretation and utilization of this information is the responsibility of the user.

Sheet Input
A1: Bison Cow-Calf Production Costs - Input
A2: Assumptions
A3: 1. This budget outlines the cost of production for a Bison Cow-Calf operation only.
A4: 2. Handling facilities are estimated at current market value with an estimated
A5: =" useful life of "&G137&" years." -> useful life of 20 years.
A6: 3. Machinery and equipment are estimated at current market value with an estimated
A7: =" useful life of "&G153&" years." -> useful life of 10 years.
A8: =" 4. Replacement heifers are valued at fair market value. ($"&TEXT(E119,"#,###")&"/heifer)" -> 4. Replacement heifers are valued at fair market value. ($3,300/heifer)
A9: =" 5. The budget assumes an average weaning weight of "&E20&" lbs. (bull calves "&E16&" lbs." -> 5. The budget assumes an average weaning weight of 463 lbs. (bull calves 485 lbs.
A10: =" and heifer calves "&E18&" lbs.)" -> and heifer calves 440 lbs.)
A12: Herd Profile
A13: Number of cows | E13: 100
A14: Number of bulls | E14: 6
A15: Calf crop % | E15: 88 | F15: %
A16: Bull Calf Weight | E16: 485 | F16: lbs
A17: Bull Calf Market Price | E17: 205 | F17: /cwt
A18: Heifer Calf Weight | E18: 440 | F18: lbs
A19: Heifer Calf Market Price | E19: 145 | F19: /cwt
A20: Average Calf Weight | E20: =ROUND(AVERAGE(E16,E18),0) -> 463 | F20: lbs
A21: Weighted Average Calf Market Price | E21: =ROUND((((E17*(E16/100))+(E19*(E18/100)))/2)/(E20/100),2) -> 176.27 | F21: /cwt
A22: Replacement rate - cows | E22: 5 | F22: %
A23: Replacement rate - bulls | E23: 10 | F23: %
A24: Cow mortality rate | E24: 2 | F24: %
A26: Feed Costs and Requirements
C27: Feed Cost | E27: Feed Requirement
E28: /Cow | G28: /Bull
A29: Flushing Ration | C29: 0.2 | D29: $/lb | E29: 4 | G29: 4 | H29: lbs/day
A30: Days/Year on Ration | E30: 60 | G30: 60 | H30: days
A31: Hay (Good Quality) | C31: 120 | D31: /ton | E31: 3 | G31: 3.25 | H31: tons/yr
A32: Creep Feed | C32: 0 | D32: /lb | E32: 0 | G32: 0 | H32: lbs/day
A33: Days/Year on Creep Feed | E33: 60 | G33: n/a | H33: days
A34: Hay (Low Quality) | C34: 0 | D34: /ton | E34: 0 | G34: 0 | H34: tons/yr
A35: Salt | C35: 0.14 | D35: /lb | E35: 16 | G35: n/a | H35: lbs/year
A36: Minerals | C36: 0.91 | D36: /lb | E36: 42 | G36: n/a | H36: lbs/year
A38: FOOTNOTE: 1 bushel (bu) barley = 48 lbs = 21.8 kg
A40: Annual Days on Pasture and Winter Feeding
A41: Pasture Grazing | C41: =IF(G41>365,"ERROR - More Than 365 Days",IF(G41<0,"ERROR, less than 0","")) ->  | G41: 170 | H41: days
A42: Extended Grazing | C42: =IF(G42>(365-G41),"ERROR - Too Many Days",IF(G42<0,"ERROR, less than 0","")) ->  | G42: 30 | H42: days
A43: Total Winter Feeding | G43: =IF(SUM(365-(G41+G42))<0,"ERROR",SUM(365-(G41+G42))) -> 165 | H43: days
A44: Winter feeding - bale grazing | E44: 0 | F44: days | G44: =IF(E45+E44>G43,"ERROR","") -> 
A45: Winter feeding - feed delivered | E45: =IF(G43="ERROR","ERROR",IF(SUM(G43-(E44))<0,0,SUM(G43-(E44)))) -> 165 | F45: days
F46: =IF(G46="ERROR","",IF(G46>365,"ERROR - More Than 365 Days",IF(G46<365,"ERROR - Less Than 365 Days",""))) ->  | G46: =IF(G43="ERROR","ERROR",SUM(G42+G41+E45+E44)) -> 365 | H46: Total Days
A48: Veterinary Medicine & Supplies
A49: Calf Medication
A50: Blackleg ( 8 way vaccine ) | E50: 0 | F50: /head
A51: Muse | E51: 0 | F51: /head
A52: Parasite Control | E52: 0 | F52: /head
A53: Cow Medication
A54: Parasite Control | E54: 9.13 | F54: /head
A55: Scourguard | E55: 0 | F55: /head
A56: Footrot, louse control, degrubbing, | E56: 0 | F56: /head
A57: surgery, antibiotics, etc.
A58: ADE, 2 treatments | E58: 0 | F58: /head
A59: Bull Medication
A60: Parasite Control | E60: 17.25 | F60: /head
A61: Semen Test | E61: 60 | F61: /head
A63: Herd Health Program
A64: Professional Services
A65: Total Yearly Hours | E65: 2
A66: Charge per Hour | E66: 175
A68: Transportation
A69: Total Kilometers (round trip) | E69: 160
A70: Charge per km | E70: 1
A71: Number of yearly visits | E71: 1
A73: Breeding Costs
A74: Replacement of Bulls
A75: Original Cost/Bull | E75: 4300
A76: Salvage Value/Bull | E76: 2500
A78: Fuel, Oil, Repairs & Maintenance
A79: a) Machinery Fuel Costs - Winter Feeding
A80: Tractor with Loader PTO hp | E80: 120
A81: Diesel Fuel Cost | E81: 1.65 | F81: /litre
A82: Tractor Hours Per Day (average) | E82: 1 | F82: hours
A83: b) Machinery Repair (% of investment cost) | E83: 1 | F83: %
A84: c) Building & fence repair (% of investment cost) | E84: 2 | F84: %
A86: Other Operating Costs
A87: Utilities
A88: Hydro | B88: - Rate | E88: 0.09324 | F88: / kWh
B89: 25 | C89: kWh per cow | E89: =SUM(B89*E13*E88) -> 233.1
B90: 1 | C90: 1000 watt waterer | E90: =SUM(B90*18)*(G43+G42)*E88 -> 327.2724
D91: Total Hydro | E91: =SUM(E89:E90) -> 560.3724
A92: Water | E92: 0
A93: Telephone | E93: 600
A95: Marketing & Transportation (Culls)
A96: a) Trucking:
A97: Number of Cull Cows & Bulls | E97: =(E13*E22/100)+(E14*E23/100) -> 5.6 | F97: culls
A98: Average Weight/Cow | E98: 1200 | F98: lbs
A99: Average Weight/Bull | E99: 1350 | F99: lbs
A100: Trucking Cost | E100: 1.9 | F100: /cwt
A101: b) Selling Commission:
A102: Insurance per Head | E102: 1.75 | F102: /head
A103: Commission on Cows | E103: 40 | F103: /cow
A104: Commission on Calves | E104: 30 | F104: /calf
A106: Investment Interest Rate | E106: 3 | F106: %
A107: Operating Interest Rate | E107: 7.75 | F107: %
A109: Insurance
A110: Cost per $100 Capital Invested in
A111: Livestock | E111: 0.45
A112: Building & Equipment | E112: 0.4
A113: Additional Coverage for liability | E113: 49
A115: Miscellaneous
A116: Total yearly expense | E116: 1000
A118: Herd replacement (cows only)
A119: Replacement Cost | E119: 3300 | F119: /heifer
A120: Average Market Value | E120: 3000 | F120: /cow
A121: Price Received | E121: 2200 | F121: /cull cow
A123: Land and Fencing
A124: Number of Acres/Cow | E124: 5 | G124: ="("&E124*E13&" ac)" -> (500 ac) | H124: =ROUND(E13*(E98/1000)*(G41/30),0) -> 680 | I124: = AUM Total
A125: Value/Acre | E125: 850 | H125: =SUM(H124/(E124*E13)) -> 1.36 | I125: = AUM/Acre
A126: Taxes per Acre | E126: 4
A127: Fence | B127: - perimeter | E127: 6 | F127: miles
B128: - perimeter cost | E128: 9250 | F128: /mile
B129: - internal | E129: 2 | F129: miles
B130: - internal cost | E130: 3960 | F130: /mile
D132: Capital Costs
D134: Original | E134: Salvage | G134: Useful
D135: Value | E135: Value | G135: Life
A136: Facilities
A137: Holding Chutes | D137: 6000 | E137: 0 | F137: % | G137: 20 | H137: years
A138: Pens (working & sorting) | D138: 15000 | E138: =E137 -> 0 | F138: % | G138: =G137 -> 20 | H138: years
A139: Feedlot Fence | D139: 4000 | E139: =E138 -> 0 | F139: % | G139: =G138 -> 20 | H139: years
A140: Round Bale Feeders | D140: 2400 | E140: 0 | F140: % | G140: 20 | H140: years
A141: Troughs & Miscellaneous | D141: 2500 | E141: 0 | F141: % | G141: 20 | H141: years
A142: Waterers | D142: 6000 | E142: 0 | F142: % | G142: 20 | H142: years
A143: Squeeze, Gates & Scale | D143: 6000 | E143: 0 | F143: % | G143: 20 | H143: years
A144: Pasture Watering System | D144: 4000 | E144: 0 | F144: % | G144: 20 | H144: years
A145: Pasture Water Source | D145: 3000 | E145: 0 | F145: % | G145: 20 | H145: years
A146: Gates | D146: 1450 | E146: 0 | F146: % | G146: 20 | H146: years
A147: Well & Pressure System | D147: 8000 | E147: 0 | F147: % | G147: 20 | H147: years
A148: Hydro (6 poles @ $400) | D148: 2400 | E148: 0 | F148: % | G148: 20 | H148: years
A149: Storage Bins | D149: 2500 | E149: 0 | F149: % | G149: 20 | H149: years
A150: Total Building Cost | D150: =SUM(D137:D149) -> 63250
A152: Machinery & Equipment:
A153: Tractor & Loader ($120,000@30%) | D153: 36000 | E153: 20 | F153: % | G153: 10 | H153: years
A154: Miscellaneous Machinery | D154: 10000 | E154: =E153 -> 20 | F154: % | G154: =G153 -> 10 | H154: years
A155: Bale Shredder | D155: 22000 | E155: =E154 -> 20 | F155: % | G155: =G154 -> 10 | H155: years
A156: Stock Trailer | D156: 25000 | E156: =E155 -> 20 | F156: % | G156: =G155 -> 10 | H156: years
A157: Truck ($60,000@ 50%) | D157: 30000 | E157: =E156 -> 20 | F157: % | G157: =G156 -> 10 | H157: years
A158: Total | D158: =SUM(D153:D157) -> 123000
A160: Land | D160: =E124*E125*E13 -> 425000 | E160: ="("&E124*E13&" acres @ $"&E125&"/acre)" -> (500 acres @ $850/acre)
A161: Fence
A162: - perimeter | D162: =E127*E128 -> 55500 | E162: 0 | F162: % | G162: 20 | H162: years
A163: - internal | D163: =E129*E130 -> 7920 | E163: =E162 -> 0 | F163: % | G163: 20 | H163: years
A164: Total | D164: =SUM(D161:D163) -> 63420
A166: Breeding Stock
A167: Cows | D167: =E120*E13 -> 300000
A168: Bulls | D168: =E75*E14 -> 25800
A169: Total | D169: =SUM(D167:D168) -> 325800
A171: Total Capital Costs | D171: =D169+D164+D160+D158+D150 -> 1000470
A173: Labour Costs
A174: Hours | D174: 4 | E174: hours/cow/year
A175: Wage | D175: 26 | E175: /hour

Sheet Extended Grazing
A1: Extended Grazing Costs & Requirements Worksheet
A3: Extended Grazing Days | C3: =Input!G42 -> 30 | E3: Perimeter Fence Cost | F3: =Input!E128 -> 9250 | G3: $/mile
A4: Number of Cows | C4: =Input!E13 -> 100 | E4: Fence Useful Life | F4: 20 | G4: years
A5: Number of Cow Grazing Days | C5: =SUM(C3*C4) -> 3000
C8: Corn Grazing | D8: Stockpiled Forage | E8: Swath Grazing | F8: Crop Residue | G8: Total
A10: Extended Grazing useage - % | C10: 0 | D10: 100 | E10: 0 | F10: 0 | G10: =IF(C3=0,0,IF(SUM(C10:F10)=100,SUM(C10:F10),"ERROR")) -> 100
G11: (total must = 100%)
A14: Grazing Yield (wet tons/acre) | C14: 15 | D14: 1 | E14: 7.5 | F14: 0.25
A15: % moisture | C15: 65 | D15: 10 | E15: 65 | F15: 8
B16: Yield (tons dry matter/acre) | C16: =SUM(1-(C15/100))*C14 -> 5.25 | D16: =SUM(1-(D15/100))*D14 -> 0.9 | E16: =SUM(1-(E15/100))*E14 -> 2.625 | F16: =SUM(1-(F15/100))*F14 -> 0.23
B17: Total # cow grazing days/acre | C17: =SUM(C16*2000)/30 -> 350 | D17: =SUM(D16*2000)/30 -> 60 | E17: =SUM(E16*2000)/30 -> 175 | F17: =SUM(F16*2000)/30 -> 15.33333333
B18: Acres Req'd (@ 100% each) | C18: =ROUND($C$5/C17,0) -> 9 | D18: =ROUND($C$5/D17,0) -> 50 | E18: =ROUND($C$5/E17,0) -> 17 | F18: =ROUND($C$5/F17,0) -> 196
A21: Planned extended grazing acres | C21: =ROUND(C18*(C10/100),0) -> 0 | D21: =ROUND(D18*(D10/100),0) -> 50 | E21: =ROUND(E18*(E10/100),0) -> 0 | F21: =ROUND(F18*(F10/100),0) -> 0
A24: Extended Grazing Costs | C24: $/acre | D24: $/pound | E24: $/acre | F24: $/pound
A26: Standing Forage Cost | C26: n/a | D26: 0.025 | E26: n/a | F26: 0.005
A28: Input Costs
B29: Seed | C29: 96 | E29: 32
B30: Fertilizer | C30: 209 | E30: 114
B31: Herbicide | C31: 16 | E31: 16
B32: Custom tillage | C32: 12 | E32: 12
B33: Custom seeding | C33: 25 | E33: 25
B34: Custom spraying | C34: 9 | E34: 9
B35: Miscellaneous | C35: 7.75 | E35: 7.75
B36: Land taxes | C36: 10 | E36: 10
B37: Land Costs | C37: 71.26 | E37: 71.26
B38: Labour | C38: =SUM(0.5*Input!D175) -> 13 | E38: =C38 -> 13
B39: Subtotal | C39: =SUM(C29:C38) -> 469.01 | D39: n/a | E39: =SUM(E29:E38) -> 310.01 | F39: n/a
A41: Fencing Costs
B42: Estimated miles of fence required | C42: =SUM(C21/80) -> 0 | D42: =SUM(D21/80) -> 0.625 | E42: =SUM(E21/80) -> 0 | F42: =SUM(F21/80) -> 0
B43: Fence Investment Cost/acre | C43: =IF(C21=0,0,SUM(C42*$F$3*(Input!$E$106/100))/C21) -> 0 | D43: =IF(D21=0,0,SUM(D42*$F$3*(Input!$E$106/100))/D21) -> 3.46875 | E43: =IF(E21=0,0,SUM(E42*$F$3*(Input!$E$106/100))/E21) -> 0 | F43: =IF(F21=0,0,SUM(F42*$F$3*(Input!$E$106/100))/F21) -> 0
B44: Fence Depreciation Cost/acre | C44: =IF(C21=0,0,SUM((C42*$F$3)/$F$4)/C21) -> 0 | D44: =IF(D21=0,0,SUM((D42*$F$3)/$F$4)/D21) -> 5.78125 | E44: =IF(E21=0,0,SUM((E42*$F$3)/$F$4)/E21) -> 0 | F44: =IF(F21=0,0,SUM((F42*$F$3)/$F$4)/F21) -> 0
A47: Total cost per acre | C47: =IF(C10=0,0,SUM(C44+C43+C39)) -> 0 | D47: =IF(D10=0,0,SUM(D44+D43+(D14*2000*D26))) -> 59.25 | E47: =IF(E10=0,0,SUM(E44+E43+E39)) -> 0 | F47: =IF(F10=0,0,SUM(F44+F43+(F14*2000*F26))) -> 0
A50: Total Extended Grazing Cost | C50: =SUM(C47*C21) -> 0 | D50: =SUM(D47*D21) -> 2962.5 | E50: =SUM(E47*E21) -> 0 | F50: =SUM(F47*F21) -> 0
A52: Cost Summary
C54: Corn Grazing | D54: Stockpiled Forage | E54: Swath Grazing | F54: Crop Residue | G54: Total Cost
A56: Cost per cow | C56: =SUM(C50/Input!E13) -> 0 | D56: =SUM(D50/Input!E13) -> 29.625 | E56: =SUM(E50/Input!E13) -> 0 | F56: =SUM(F50/Input!E13) -> 0 | G56: =IF(C3=0,0,IF(G10="ERROR","ERROR",SUM(C56:F56))) -> 29.625
A57: Number of Days | C57: =IF($C$3=0,"",IF(C10=0,"",SUM(C10/100*$C$3))) ->  | D57: =IF($C$3=0,"",IF(D10=0,"",SUM(D10/100*$C$3))) -> 30 | E57: =IF($C$3=0,"",IF(E10=0,"",SUM(E10/100*$C$3))) ->  | F57: =IF($C$3=0,"",IF(F10=0,"",SUM(F10/100*$C$3))) -> 
A58: Cost / cow / day | C58: =IF($C$3=0,"",IF(C10=0,"",C56/C57)) ->  | D58: =IF($C$3=0,"",IF(D10=0,"",D56/D57)) -> 0.9875 | E58: =IF($C$3=0,"",IF(E10=0,"",E56/E57)) ->  | F58: =IF($C$3=0,"",IF(F10=0,"",F56/F57)) ->  | G58: =IF(G56="ERROR","",IF(G56=0,"",SUM(G56/C3))) -> 0.9875
A62: Note: This budget is only a guide and is not intended as an in-depth study of the cost of production of this industry. Interpretation and utilization of this information is the responsibility of the user.

Sheet Details
A1: Assumptions
A2: 1. This budget outlines the cost of production for a Bison Cow-Calf operation only.
A4: 2. Handling facilities are estimated at current market value with an estimated useful life of 20 years.
A7: 3. Machinery and equipment are estimated at current market value with an estimated useful life of 12 years.
A10: 4. Replacement heifers are valued at fair market value.
A12: ="5. The budget assumes an average weaning weight of "&Input!E20&" lbs." -> 5. The budget assumes an average weaning weight of 463 lbs.
A13: ="6. This budget is based on "&Input!G41+Input!G42&" days grazing and "&Input!G43&" days winter feeding." -> 6. This budget is based on 200 days grazing and 165 days winter feeding.
A15: Bison Cow-Calf Production Cost Worksheet
A17: A. Operating Costs
H18: Your Cost
A19: 1. Feed Costs
A20: 1.01 Flushing Ration
B21: Cows | D21: =Input!E29 -> 4 | F21: lbs/cow/day
C22: x | D22: =Input!E30 -> 60 | F22: days/year
C23: x | D23: =ROUND(Input!C29,2) -> 0.2 | F23: /lb
C24: = | D24: =ROUND((D21*D22)*D23,2) -> 48 | F24: /cow
B26: Bulls | D26: =Input!G29 -> 4 | F26: lbs/bull/day
C27: x | D27: =Input!G30 -> 60 | F27: days
C28: x | D28: =ROUND(Input!C29,2) -> 0.2 | F28: /lb
C29: x | D29: =Input!E14 -> 6 | F29: bulls
C30: ÷ | D30: =Input!E13 -> 100 | F30: cows
C31: = | D31: =ROUND(((D26*D27)*(D28)*D29)/D30,2) -> 2.88 | F31: /cow
B33: Total | D33: =D24+D31 -> 50.88 | F33: /cow
A35: 1.02 Hay
B36: Cows | D36: =Input!E31 -> 3 | F36: tons
C37: x | D37: =Input!C31 -> 120 | F37: /ton
C38: = | D38: =ROUND(D36*D37,2) -> 360 | F38: /cow
B40: Bulls | D40: =Input!G31 -> 3.25 | F40: tons
C41: x | D41: =Input!C31 -> 120 | F41: /ton
C42: x | D42: =Input!E14 -> 6 | F42: bulls
C43: ÷ | D43: =Input!E13 -> 100 | F43: cows
C44: = | D44: =ROUND(((D40*D41)*D42)/D43,2) -> 23.4 | F44: /cow
B46: Total | D46: =D38+D44 -> 383.4 | F46: /cow
A48: 1.03 Salt and Minerals
B49: Cows | D49: =Input!E35 -> 16 | F49: lbs salt/cow/year
C50: x | D50: =Input!C35 -> 0.14 | F50: /lb
C51: = | D51: =ROUND(D49*D50,2) -> 2.24 | F51: /cow
D53: =Input!E36 -> 42 | F53: lbs mineral/cow/year
C54: x | D54: =Input!C36 -> 0.91 | F54: /lb
C55: = | D55: =ROUND(D53*D54,2) -> 38.22 | F55: /cow
B57: Bulls | D57: =Input!E35 -> 16 | F57: lbs salt/bull/year
C58: x | D58: =Input!C35 -> 0.14 | F58: /lb
C59: x | D59: =Input!E14 -> 6 | F59: bulls
C60: ÷ | D60: =Input!E13 -> 100 | F60: cows
C61: = | D61: =ROUND((D57*D58)*D59/D60,2) -> 0.13 | F61: /cow
D63: =Input!E36 -> 42 | F63: lbs mineral/bull/year
C64: x | D64: =Input!C36 -> 0.91 | F64: /lb
C65: x | D65: =Input!E14 -> 6 | F65: bulls
C66: ÷ | D66: =Input!E13 -> 100 | F66: cows
C67: = | D67: =ROUND((D63*D64)*D65/D66,2) -> 2.29 | F67: /cow
B69: Total | D69: =D51+D55+D61+D67 -> 42.88 | F69: /cow
A71: 1.04 Creep Feed
D72: =Input!E32 -> 0 | F72: lbs/day
C73: x | D73: =Input!E33 -> 60 | F73: days
C74: x | D74: =Input!C32 -> 0 | F74: /lb
C75: x | D75: =Input!E15 -> 88 | F75: % calf crop
C76: = | D76: =ROUND(((D72*D73)*D74)*D75/100,2) -> 0 | F76: /cow
A78: 1.05 Extended Grazing Forages
B79: ='Extended Grazing'!C8 -> Corn Grazing | D79: ='Extended Grazing'!C56 -> 0 | F79: /cow
B81: ='Extended Grazing'!D8 -> Stockpiled Forage | D81: ='Extended Grazing'!D56 -> 29.625 | F81: /cow
B83: ='Extended Grazing'!E8 -> Swath Grazing | D83: ='Extended Grazing'!E56 -> 0 | F83: /cow
B85: ='Extended Grazing'!F8 -> Crop Residue | D85: ='Extended Grazing'!F56 -> 0 | F85: /cow
B87: Total | C87: = | D87: =D79+D81+D83+D85 -> 29.625 | F87: /cow
A89: 2. Other Operating Costs
A91: 2.01 Veterinary Medicine & Supplies
B93: Calf medication
D94: =Input!E50 -> 0 | F94: blackleg
C95: + | D95: =Input!E51 -> 0 | F95: vitamin
C96: + | D96: =Input!E52 -> 0 | F96: parasite control
C97: = | D97: =ROUND(D94+D95+D96,2) -> 0 | F97: total
C98: x | D98: =Input!E15 -> 88 | F98: % calf crop
C99: = | D99: =ROUND(D97*D98/100,2) -> 0 | F99: /cow
B101: Cow medication
D102: =Input!E54 -> 9.13 | F102: parasite control
C103: + | D103: =Input!E55 -> 0 | F103: scourguard 3
C104: + | D104: =Input!E56 -> 0 | F104: footrot, louse control,
C105: + | D105: =Input!E58 -> 0 | F105: ADE
C106: = | D106: =ROUND(SUM(D102+D103+D104+D105),2) -> 9.13 | F106: /cow
B108: Bull medication
D109: =Input!E60 -> 17.25 | F109: parasite control
C110: + | D110: =Input!E61 -> 60 | F110: semen test
C111: x | D111: =Input!E14 -> 6 | F111: bulls
C112: ÷ | D112: =Input!E13 -> 100 | F112: cows
C113: = | D113: =ROUND((D109+D110)*D111/D112,2) -> 4.64 | F113: /cow
B115: Herd health program
D116: =Input!E66 -> 175 | F116: /hour charge
C117: x | D117: =Input!E65 -> 2 | F117: hours
C118: ÷ | D118: =Input!E13 -> 100 | F118: cows
C119: = | D119: =ROUND(D116*D117/D118,2) -> 3.5 | F119: /cow
B121: Mileage
D122: =Input!E70 -> 1 | F122: /km charge
C123: x | D123: =Input!E69 -> 160 | F123: kilometres
C124: x | D124: =Input!E71 -> 1 | F124: visits
C125: ÷ | D125: =Input!E13 -> 100 | F125: cows
C126: = | D126: =ROUND(D122*D123*D124/D125,2) -> 1.6 | F126: /cow
B128: Total | C128: = | D128: =D99+D106+D113+D119+D126 -> 18.87 | F128: /cow
A130: 2.02 Fuel, Oil, Repairs & Maintenance
B131: Machinery fuel cost
D132: =Input!E80 -> 120 | F132: PTO hp
C133: ÷ | D133: 2.5 | F133: avg HP required
C134: x | D134: 0.1665576 | F134: litres fuel/hour/hp
C135: x | D135: =Input!E82 -> 1 | F135: hours per day
C136: x | D136: =Input!E81 -> 1.65 | F136: diesel / litre
C137: x | D137: =Input!E45 -> 165 | F137: days on feed
D138: =IF(D137="ERROR","ERROR",ROUND(((D132/D133)*D134*D135*D136*D137),2)) -> 2176.57 | F138: annual fuel cost
C139: ÷ | D139: =Input!E13 -> 100 | F139: cows
C140: = | D140: =IF(D137="ERROR","ERROR",SUM(D138/D139)) -> 21.7657 | F140: /cow
B141: Machinery repair & maintenance
D142: =Input!D158 -> 123000 | F142: machinery capital cost
C143: x | D143: =Input!E83 -> 1 | F143: % repair rate
C144: = | D144: =SUM(D142*(D143/100)) -> 1230 | F144: oil, repairs & maintenance
C145: ÷ | D145: =Input!E13 -> 100 | F145: cows
C146: = | D146: =SUM(D144/D145) -> 12.3 | F146: /cow
B147: Building & fence repair
D148: =Input!D150+Input!D164 -> 126670 | F148: building capital cost
C149: x | D149: =Input!E84 -> 2 | F149: % repair rate
C150: = | D150: =SUM(D148*(D149/100)) -> 2533.4 | F150: oil, repairs & maintenance
C151: ÷ | D151: =Input!E13 -> 100 | F151: cows
C152: = | D152: =SUM(D150/D151) -> 25.334 | F152: /cow
B154: Total | C154: = | D154: =SUM(D152+D146+D140) -> 59.3997 | F154: /cow
A156: 2.03 Utilities
D157: =SUM(Input!E91:E93) -> 1160.3724 | F157: annual cost
C158: ÷ | D158: =Input!E13 -> 100 | F158: cows
C159: = | D159: =ROUND(D157/D158,2) -> 11.6 | F159: /cow
A161: 2.04 Marketing & Transportation (Culls)
A162: Trucking
B163: Calves | D163: =ROUND(Input!E13*Input!E15/100,0) -> 88 | F163: calves
C164: x | D164: =Input!E20 -> 463 | F164: lbs/calf
C165: x | D165: =Input!E100 -> 1.9 | F165: /cwt (trucking cost)
C166: ÷ | D166: 100 | F166: lbs/cwt
C167: ÷ | D167: =Input!E13 -> 100 | F167: cows
C168: = | D168: =ROUND(((D163*D164)*D165/D166)/D167,2) -> 7.74 | F168: /cow
B170: Cull Cows | D170: =Input!E13*Input!E22/100 -> 5 | F170: cull cows
C171: - | D171: =ROUND(Input!E13*Input!E24/100,0) -> 2 | F171: cows died
C172: x | D172: =Input!E98 -> 1200 | F172: lbs/cow
C173: x | D173: =Input!E100 -> 1.9 | F173: /cwt (trucking cost)
C174: ÷ | D174: 100 | F174: lbs/cwt
C175: ÷ | D175: =Input!E13 -> 100 | F175: cows
C176: = | D176: =ROUND((((D170-D171)*D172*D173)/D174)/D175,2) -> 0.68 | F176: /cow
B178: Cull Bulls | D178: =Input!E14*Input!E23/100 -> 0.6 | F178: cull bulls
C179: x | D179: =Input!E99 -> 1350 | F179: lbs/bull
C180: x | D180: =Input!E100 -> 1.9 | F180: /cwt (trucking cost)
C181: ÷ | D181: 100 | F181: lbs/cwt
C182: ÷ | D182: =Input!E13 -> 100 | F182: cows
C183: = | D183: =ROUND((((D178)*D179*D180)/D181)/D182,2) -> 0.15 | F183: /cow
A185: Selling commission & insurance
B186: Calves | D186: =Input!E104 -> 30 | F186: Commission, Insurance
C187: x | D187: =D163 -> 88 | F187: calves
C188: ÷ | D188: =Input!E13 -> 100 | F188: cows
C189: = | D189: =((D186)*D187)/D188 -> 26.4 | F189: /cow
B191: Cull Cows | D191: =Input!E102+Input!E103 -> 41.75 | F191: Commission, Insurance
C192: x | D192: =D170 -> 5 | F192: cull cows
C193: ÷ | D193: =Input!E13 -> 100 | F193: cows
C194: = | D194: =((D191)*D192)/D193 -> 2.0875 | F194: /cow
C196: = | D196: =ROUND(D194+D189+D176+D183+D168,2) -> 37.06 | F196: /cow
A198: 2.05 Death Loss
B199: Cows | D199: =Input!E119 -> 3300 | F199: /cow
C200: x | D200: =Input!E24 -> 2 | F200: % mortality rate
C201: = | D201: =ROUND(D199*D200/100,2) -> 66 | F201: /cow
B203: Bulls | D203: =Input!E75 -> 4300 | F203: /bull
C204: x | D204: =Input!E24 -> 2 | F204: % mortality rate
C205: x | D205: =Input!E14 -> 6 | F205: bulls
C206: ÷ | D206: =Input!E13 -> 100 | F206: cows
C207: = | D207: =ROUND(((D203*D204/100)*D205)/D206,2) -> 5.16 | F207: /cow
B209: Total | D209: =D201+D207 -> 71.16 | F209: /cow
A211: 2.06 Insurance
D212: =Input!D150 -> 63250 | F212: bldg & equip invest
C213: x | D213: =Input!E112 -> 0.4 | F213: cost/$100 Capital
C214: ÷ | D214: 100 | F214: units of $100
C215: ÷ | D215: =Input!E13 -> 100 | F215: cows
C216: = | D216: =ROUND(D212*(D213/D214)/D215,2) -> 2.53 | F216: /cow
D218: =Input!D169 -> 325800 | F218: total for herd
C219: ÷ | D219: 100 | F219: units of $100
C220: x | D220: =Input!E111 -> 0.45 | F220: insurance rate/$100
C221: ÷ | D221: =Input!E13 -> 100 | F221: cows
C222: = | D222: =((D218/D219)*D220)/D221 -> 14.661 | F222: /cow
D224: =Input!E113 -> 49 | F224: coverage for liability
C225: ÷ | D225: =Input!E13 -> 100 | F225: cows
C226: = | D226: =ROUND(D224/D225,2) -> 0.49 | F226: /cow
B228: Total | C228: = | D228: =ROUND(D216+D222+D226,2) -> 17.68 | F228: /cow
A230: 2.07 Herd Replacement
B231: Cows | D231: =Input!E119 -> 3300 | F231: bred heifer
C232: - | D232: =Input!E121 -> 2200 | F232: cull cow
C233: x | D233: =Input!E22 -> 5 | F233: % replacement rate
C234: = | D234: =ROUND((D231-D232)*(D233/100),2) -> 55 | F234: /cow
B236: Bulls | D236: =Input!E75 -> 4300 | F236: bull value
C237: - | D237: =Input!E76 -> 2500 | F237: bull cull value
C238: x | D238: =Input!E23 -> 10 | F238: % replacement rate
C239: x | D239: =Input!E14 -> 6 | F239: number of bulls
C240: ÷ | D240: =Input!E13 -> 100 | F240: cows
C241: = | D241: =ROUND((((D236-D237)*(D238/100)*D239)/D240),2) -> 10.8 | F241: /cow
B243: Total | D243: =D234+D241 -> 65.8 | F243: /cow
A245: 2.08 Miscellaneous
D246: =Input!E116 -> 1000 | F246: total office expenses
C247: ÷ | D247: =Input!E13 -> 100 | F247: cows
C248: = | D248: =ROUND(D246/D247,2) -> 10 | F248: /cow
A250: 2.09 Land Taxes
D251: =Input!E124 -> 5 | F251: acres/cow
C252: x | D252: =Input!E126 -> 4 | F252: /acre
C253: = | D253: =D251*D252 -> 20 | F253: /cow
... 120 more rows
